[Event "Titled Tuesday Blitz November 22 Late 2022"]
[White "Jegorovas, Aleksandras"]
[Black "Naroditsky, Daniel"]
[WhiteFideId "12801950"]
[BlackFideId "2026961"]
[WhiteElo "2247"]
[BlackElo "2628"]
[Result "0-1"]
[Round "01"]
[TimeControl "180+1"]
[Date "2022.11.22"]
[WhiteClock "0:00:03"]
[BlackClock "0:00:13"]

1. Nf3 {[%clk 0:02:56]}  Nf6 {[%clk 0:03:00]} 2. c4 {[%clk 0:02:56]}  g6 {[%clk 0:02:59]} 3. Nc3 {[%clk 0:02:55]}  Bg7 {[%clk 0:03:00]} 4. e4 {[%clk 0:02:55]}  d6 {[%clk 0:03:01]} 5. d4 {[%clk 0:02:56]}  O-O {[%clk 0:03:02]} 6. Be2 {[%clk 0:02:56]}  e5 {[%clk 0:03:02]} 7. O-O {[%clk 0:02:56]}  exd4 {[%clk 0:03:01]} 8. Nxd4 {[%clk 0:02:56]}  Re8 {[%clk 0:03:02]} 9. f3 {[%clk 0:02:55]}  c6 {[%clk 0:03:03]} 10. Kh1 {[%clk 0:02:55]}  Nbd7 {[%clk 0:03:02]} 11. Bg5 {[%clk 0:02:53]}  Qb6 {[%clk 0:02:51]} 12. Nb3 {[%clk 0:02:48]}  a5 {[%clk 0:02:47]} 13. Qd2 {[%clk 0:02:46]}  a4 {[%clk 0:02:46]} 14. Be3 {[%clk 0:02:45]}  Qc7 {[%clk 0:02:42]} 15. Nd4 {[%clk 0:02:40]}  Nc5 {[%clk 0:02:15]} 16. Rad1 {[%clk 0:02:34]}  Nfd7 {[%clk 0:02:14]} 17. Nc2 {[%clk 0:02:28]}  Bf8 {[%clk 0:01:57]} 18. Bf4 {[%clk 0:02:17]}  Ne5 {[%clk 0:01:57]} 19. Ne3 {[%clk 0:02:12]}  Qb6 {[%clk 0:01:49]} 20. Bg3 {[%clk 0:01:59]}  Bg7 {[%clk 0:01:43]} 21. Bf2 {[%clk 0:01:55]}  Qb4 {[%clk 0:01:33]} 22. Qxd6 {[%clk 0:01:32]}  Qxb2 {[%clk 0:01:23]} 23. Qxc5 {[%clk 0:01:31]}  Qxc3 {[%clk 0:01:24]} 24. Be1 {[%clk 0:01:23]}  Qb2 {[%clk 0:01:14]} 25. Rd2 {[%clk 0:01:13]}  Nd7 {[%clk 0:01:10]} 26. Rxb2 {[%clk 0:00:50]}  Nxc5 {[%clk 0:01:09]} 27. Rb1 {[%clk 0:00:46]}  f5 {[%clk 0:01:08]} 28. Bb4 {[%clk 0:00:44]}  Na6 {[%clk 0:01:08]} 29. Bd6 {[%clk 0:00:23]}  fxe4 {[%clk 0:01:08]} 30. c5 {[%clk 0:00:22]}  exf3 {[%clk 0:01:03]} 31. Rxf3 {[%clk 0:00:20]}  Bd4 {[%clk 0:00:46]} 32. Bc4+ {[%clk 0:00:17]}  Be6 {[%clk 0:00:47]} 33. Bxe6+ {[%clk 0:00:08]}  Rxe6 {[%clk 0:00:48]} 34. Ng4 {[%clk 0:00:08]}  h5 {[%clk 0:00:35]} 35. Nh6+ {[%clk 0:00:07]}  Kg7 {[%clk 0:00:31]} 36. Bf4 {[%clk 0:00:04]}  Nxc5 {[%clk 0:00:29]} 37. h4 {[%clk 0:00:04]}  Rae8 {[%clk 0:00:21]} 38. Rd1 {[%clk 0:00:04]}  Re1+ {[%clk 0:00:21]} 39. Rxe1 {[%clk 0:00:04]}  Rxe1+ {[%clk 0:00:22]} 40. Kh2 {[%clk 0:00:04]}  Bf6 {[%clk 0:00:18]} 41. Bg5 {[%clk 0:00:04]}  Re6 {[%clk 0:00:13]} 42. Rc3 {[%clk 0:00:03]}  Bxc3 {[%clk 0:00:13]} 0-1


[Site "https://www.chess.com"]

[Event "Titled Tuesday Blitz November 22 Late 2022"]
[White "Jimenez Almeida, Luis David"]
[Black "Abdrlauf, Elham"]
[WhiteFideId "22242244"]
[BlackFideId "1533533"]
[WhiteElo "2158"]
[BlackElo "2447"]
[Result "1-0"]
[Round "01"]
[TimeControl "180+1"]
[Date "2022.11.23"]
[WhiteClock "0:00:05"]
[BlackClock "0:00:01"]

1. e4 {[%clk 0:02:57]}  c6 {[%clk 0:02:59]} 2. Nc3 {[%clk 0:02:57]}  d5 {[%clk 0:03:00]} 3. Qf3 {[%clk 0:02:56]}  dxe4 {[%clk 0:03:00]} 4. Nxe4 {[%clk 0:02:56]}  Nf6 {[%clk 0:03:01]} 5. Nxf6+ {[%clk 0:02:56]}  exf6 {[%clk 0:03:02]} 6. Bc4 {[%clk 0:02:55]}  Bd6 {[%clk 0:03:02]} 7. Ne2 {[%clk 0:02:55]}  O-O {[%clk 0:03:01]} 8. d4 {[%clk 0:02:55]}  Nd7 {[%clk 0:03:01]} 9. O-O {[%clk 0:02:53]}  Re8 {[%clk 0:03:01]} 10. c3 {[%clk 0:02:52]}  Nf8 {[%clk 0:03:00]} 11. Bf4 {[%clk 0:02:50]}  Ng6 {[%clk 0:02:56]} 12. Bg3 {[%clk 0:02:49]}  Be6 {[%clk 0:02:51]} 13. Bxe6 {[%clk 0:02:45]}  fxe6 {[%clk 0:02:40]} 14. Rfe1 {[%clk 0:02:40]}  Qd7 {[%clk 0:02:35]} 15. h4 {[%clk 0:02:37]}  Ne7 {[%clk 0:02:26]} 16. Bxd6 {[%clk 0:02:31]}  Qxd6 {[%clk 0:02:27]} 17. Nf4 {[%clk 0:02:28]}  Nd5 {[%clk 0:02:23]} 18. Nd3 {[%clk 0:02:23]}  Re7 {[%clk 0:02:21]} 19. Re2 {[%clk 0:02:22]}  Rae8 {[%clk 0:02:20]} 20. Rae1 {[%clk 0:02:22]}  Nc7 {[%clk 0:02:16]} 21. h5 {[%clk 0:02:18]}  Qd5 {[%clk 0:02:09]} 22. Qh3 {[%clk 0:02:02]}  Qxa2 {[%clk 0:01:38]} 23. h6 {[%clk 0:02:01]}  Qd5 {[%clk 0:01:09]} 24. hxg7 {[%clk 0:02:00]}  Kxg7 {[%clk 0:01:07]} 25. Re3 {[%clk 0:01:44]}  Kh8 {[%clk 0:00:57]} 26. Rf3 {[%clk 0:01:39]}  Qg5 {[%clk 0:00:45]} 27. Rg3 {[%clk 0:01:36]}  Qf5 {[%clk 0:00:45]} 28. Qh6 {[%clk 0:01:21]}  Rg8 {[%clk 0:00:34]} 29. Ree3 {[%clk 0:01:21]}  Reg7 {[%clk 0:00:22]} 30. Rxg7 {[%clk 0:01:03]}  Rxg7 {[%clk 0:00:23]} 31. Kf1 {[%clk 0:01:02]}  Nd5 {[%clk 0:00:17]} 32. Rf3 {[%clk 0:01:01]}  Qg5 {[%clk 0:00:15]} 33. Qh3 {[%clk 0:01:01]}  f5 {[%clk 0:00:02]} 34. Kg1 {[%clk 0:00:54]}  Qd2 {[%clk 0:00:02]} 35. Qh4 {[%clk 0:00:46]}  Qg5 {[%clk 0:00:02]} 36. Qh3 {[%clk 0:00:44]}  Rg6 {[%clk 0:00:02]} 37. Ne5 {[%clk 0:00:43]}  Qc1+ {[%clk 0:00:01]} 38. Kh2 {[%clk 0:00:43]}  Rg7 {[%clk 0:00:01]} 39. Qh4 {[%clk 0:00:32]}  Ne7 {[%clk 0:00:02]} 40. Qf6 {[%clk 0:00:29]}  Kg8 {[%clk 0:00:02]} 41. Rg3 {[%clk 0:00:22]}  Ng6 {[%clk 0:00:01]} 42. Qd8+ {[%clk 0:00:18]}  Nf8 {[%clk 0:00:02]} 43. Rxg7+ {[%clk 0:00:15]}  Kxg7 {[%clk 0:00:02]} 44. Qe7+ {[%clk 0:00:15]}  Kh6 {[%clk 0:00:01]} 45. Qxf8+ {[%clk 0:00:15]}  Kg5 {[%clk 0:00:02]} 46. Qg7+ {[%clk 0:00:14]}  Kh4 {[%clk 0:00:01]} 47. Qxh7+ {[%clk 0:00:12]}  Kg5 {[%clk 0:00:01]} 48. Qg7+ {[%clk 0:00:11]}  Kh5 {[%clk 0:00:01]} 49. g4+ {[%clk 0:00:08]}  Kh4 {[%clk 0:00:01]} 50. Nf3# {[%clk 0:00:05]} 1-0


[Site "https://www.chess.com"]

[Event "Titled Tuesday Blitz November 22 Late 2022"]
[White "Kalogeris, Ioannis"]
[Black "Chigaev, Maksim"]
[WhiteFideId "4239563"]
[BlackFideId "4108116"]
[WhiteElo "2312"]
[BlackElo "2541"]
[Result "0-1"]
[Round "01"]
[TimeControl "180+1"]
[Date "2022.11.22"]
[WhiteClock "0:01:24"]
[BlackClock "0:01:33"]

1. e4 {[%clk 0:02:57]}  c5 {[%clk 0:02:59]} 2. Nf3 {[%clk 0:02:48]}  e6 {[%clk 0:02:59]} 3. Nc3 {[%clk 0:02:45]}  Nc6 {[%clk 0:02:59]} 4. Bb5 {[%clk 0:02:45]}  Nd4 {[%clk 0:02:59]} 5. Nxd4 {[%clk 0:02:43]}  cxd4 {[%clk 0:03:00]} 6. Ne2 {[%clk 0:02:44]}  Qg5 {[%clk 0:02:49]} 7. Nxd4 {[%clk 0:02:24]}  Qc5 {[%clk 0:02:22]} 8. c3 {[%clk 0:02:10]}  e5 {[%clk 0:02:22]} 9. Qa4 {[%clk 0:01:55]}  exd4 {[%clk 0:02:04]} 10. cxd4 {[%clk 0:01:56]}  Qb4 {[%clk 0:02:03]} 11. O-O {[%clk 0:01:49]}  a6 {[%clk 0:01:52]} 12. Qxb4 {[%clk 0:01:45]}  Bxb4 {[%clk 0:01:53]} 13. Bc4 {[%clk 0:01:45]}  Ne7 {[%clk 0:01:38]} 14. d3 {[%clk 0:01:32]}  d5 {[%clk 0:01:35]} 15. exd5 {[%clk 0:01:29]}  b5 {[%clk 0:01:33]} 16. Bb3 {[%clk 0:01:29]}  Bb7 {[%clk 0:01:33]} 17. a3 {[%clk 0:01:23]}  Bd6 {[%clk 0:01:33]} 18. Re1 {[%clk 0:01:24]}  Kd7 {[%clk 0:01:33]} 0-1


[Site "https://www.chess.com"]

[Event "Titled Tuesday Blitz November 22 Late 2022"]
[White "Karas, Marek"]
[Black "Rustemov, Alexander"]
[WhiteFideId "14928558"]
[BlackFideId "4119002"]
[WhiteElo "2220"]
[BlackElo "2865"]
[Result "0-1"]
[Round "01"]
[TimeControl "180+1"]
[Date "2022.11.23"]
[WhiteClock "0:01:20"]
[BlackClock "0:01:42"]

1. d4 {[%clk 0:02:59]}  f5 {[%clk 0:02:58]} 2. Bg5 {[%clk 0:02:58]}  g6 {[%clk 0:02:57]} 3. Nc3 {[%clk 0:02:55]}  Bg7 {[%clk 0:02:57]} 4. e4 {[%clk 0:02:55]}  fxe4 {[%clk 0:02:58]} 5. Nxe4 {[%clk 0:02:56]}  d5 {[%clk 0:02:58]} 6. Nc5 {[%clk 0:02:57]}  b6 {[%clk 0:02:54]} 7. Nb3 {[%clk 0:02:57]}  Qd6 {[%clk 0:02:52]} 8. Nf3 {[%clk 0:02:54]}  Nf6 {[%clk 0:02:50]} 9. Be2 {[%clk 0:02:51]}  O-O {[%clk 0:02:49]} 10. O-O {[%clk 0:02:51]}  Ne4 {[%clk 0:02:48]} 11. Bh4 {[%clk 0:02:49]}  c5 {[%clk 0:02:44]} 12. c3 {[%clk 0:02:48]}  Bf5 {[%clk 0:02:40]} 13. Bg3 {[%clk 0:02:45]}  Nxg3 {[%clk 0:02:39]} 14. hxg3 {[%clk 0:02:46]}  Nd7 {[%clk 0:02:38]} 15. Re1 {[%clk 0:02:43]}  e5 {[%clk 0:02:33]} 16. dxe5 {[%clk 0:02:31]}  Nxe5 {[%clk 0:02:33]} 17. Nxe5 {[%clk 0:02:32]}  Bxe5 {[%clk 0:02:32]} 18. Bf3 {[%clk 0:02:28]}  Rad8 {[%clk 0:02:32]} 19. Qd2 {[%clk 0:02:13]}  d4 {[%clk 0:02:22]} 20. cxd4 {[%clk 0:01:57]}  cxd4 {[%clk 0:02:22]} 21. Be4 {[%clk 0:01:50]}  d3 {[%clk 0:02:13]} 22. Bxf5 {[%clk 0:01:42]}  Rxf5 {[%clk 0:02:13]} 23. Rad1 {[%clk 0:01:42]}  Bf6 {[%clk 0:02:06]} 24. Re3 {[%clk 0:01:30]}  Rd5 {[%clk 0:02:04]} 25. Nc1 {[%clk 0:01:26]}  Bg5 {[%clk 0:01:57]} 26. f4 {[%clk 0:01:26]}  Bf6 {[%clk 0:01:53]} 27. Rxd3 {[%clk 0:01:24]}  Rxd3 {[%clk 0:01:47]} 28. Qxd3 {[%clk 0:01:22]}  Qc5+ {[%clk 0:01:44]} 29. Kh2 {[%clk 0:01:20]}  Rxd3 {[%clk 0:01:43]} 30. Nxd3 {[%clk 0:01:20]}  Qc2 {[%clk 0:01:42]} 0-1


[Site "https://www.chess.com"]

[Event "Titled Tuesday Blitz November 22 Late 2022"]
[White "Kirillov, Dmitry"]
[Black "Ibarra Jerez, Jose Carlos"]
[WhiteFideId "34180572"]
[BlackFideId "2226332"]
[WhiteElo "2095"]
[BlackElo "2638"]
[Result "0-1"]
[Round "01"]
[TimeControl "180+1"]
[Date "2022.11.22"]
[WhiteClock "0:00:08"]
[BlackClock "0:00:24"]

1. d4 {[%clk 0:02:58]}  Nf6 {[%clk 0:02:46]} 2. Nf3 {[%clk 0:02:59]}  g6 {[%clk 0:02:45]} 3. Bf4 {[%clk 0:02:59]}  Bg7 {[%clk 0:02:42]} 4. e3 {[%clk 0:03:00]}  O-O {[%clk 0:02:43]} 5. h3 {[%clk 0:03:01]}  d6 {[%clk 0:02:43]} 6. Be2 {[%clk 0:03:01]}  c5 {[%clk 0:02:39]} 7. c4 {[%clk 0:03:00]}  cxd4 {[%clk 0:02:37]} 8. exd4 {[%clk 0:03:01]}  d5 {[%clk 0:02:30]} 9. Nc3 {[%clk 0:02:35]}  Nc6 {[%clk 0:02:26]} 10. O-O {[%clk 0:02:29]}  dxc4 {[%clk 0:02:09]} 11. Bxc4 {[%clk 0:02:26]}  Na5 {[%clk 0:02:08]} 12. Bd3 {[%clk 0:02:23]}  b6 {[%clk 0:02:07]} 13. Re1 {[%clk 0:02:05]}  Bb7 {[%clk 0:02:05]} 14. Rc1 {[%clk 0:01:57]}  a6 {[%clk 0:01:58]} 15. Qe2 {[%clk 0:01:48]}  e6 {[%clk 0:01:56]} 16. Rcd1 {[%clk 0:01:43]}  Nd5 {[%clk 0:01:36]} 17. Nxd5 {[%clk 0:01:42]}  Qxd5 {[%clk 0:01:37]} 18. b3 {[%clk 0:01:38]}  Rfd8 {[%clk 0:01:34]} 19. Bc7 {[%clk 0:01:33]}  Rdc8 {[%clk 0:01:19]} 20. Bxb6 {[%clk 0:01:33]}  Bf8 {[%clk 0:01:07]} 21. Be4 {[%clk 0:01:28]}  Qxe4 {[%clk 0:01:03]} 22. Qxe4 {[%clk 0:01:25]}  Bxe4 {[%clk 0:01:04]} 23. Rxe4 {[%clk 0:01:25]}  Nc6 {[%clk 0:01:01]} 24. Ree1 {[%clk 0:01:25]}  Nb4 {[%clk 0:01:00]} 25. Re2 {[%clk 0:01:19]}  Nd5 {[%clk 0:00:59]} 26. Ba5 {[%clk 0:01:19]}  Rab8 {[%clk 0:00:59]} 27. Ne5 {[%clk 0:01:14]}  Bd6 {[%clk 0:00:56]} 28. Nc4 {[%clk 0:01:11]}  Bf8 {[%clk 0:00:54]} 29. g3 {[%clk 0:01:05]}  Rc6 {[%clk 0:00:53]} 30. Kg2 {[%clk 0:01:04]}  Rbc8 {[%clk 0:00:53]} 31. f4 {[%clk 0:01:02]}  Bg7 {[%clk 0:00:53]} 32. Kf3 {[%clk 0:00:55]}  h5 {[%clk 0:00:53]} 33. Rc2 {[%clk 0:00:47]}  Ne7 {[%clk 0:00:52]} 34. Be1 {[%clk 0:00:40]}  Nf5 {[%clk 0:00:52]} 35. Bf2 {[%clk 0:00:40]}  Rd8 {[%clk 0:00:52]} 36. Rcd2 {[%clk 0:00:39]}  Ne7 {[%clk 0:00:52]} 37. g4 {[%clk 0:00:35]}  hxg4+ {[%clk 0:00:52]} 38. hxg4 {[%clk 0:00:36]}  Nd5 {[%clk 0:00:52]} 39. Ne3 {[%clk 0:00:28]}  Nc3 {[%clk 0:00:46]} 40. Rc1 {[%clk 0:00:26]}  Rxd4 {[%clk 0:00:42]} 41. Rxd4 {[%clk 0:00:24]}  Bxd4 {[%clk 0:00:43]} 42. Nd1 {[%clk 0:00:17]}  Bf6 {[%clk 0:00:31]} 43. Nxc3 {[%clk 0:00:16]}  Rxc3+ {[%clk 0:00:27]} 44. Rxc3 {[%clk 0:00:16]}  Bxc3 {[%clk 0:00:28]} 45. Ke4 {[%clk 0:00:16]}  f5+ {[%clk 0:00:27]} 46. gxf5 {[%clk 0:00:17]}  gxf5+ {[%clk 0:00:25]} 47. Kd3 {[%clk 0:00:17]}  Bb4 {[%clk 0:00:24]} 48. Kc4 {[%clk 0:00:17]}  Bd6 {[%clk 0:00:25]} 49. b4 {[%clk 0:00:16]}  Bxf4 {[%clk 0:00:24]} 50. a4 {[%clk 0:00:16]}  e5 {[%clk 0:00:24]} 51. b5 {[%clk 0:00:14]}  axb5+ {[%clk 0:00:24]} 52. axb5 {[%clk 0:00:13]}  e4 {[%clk 0:00:25]} 53. Kd4 {[%clk 0:00:12]}  Kf7 {[%clk 0:00:24]} 54. b6 {[%clk 0:00:09]}  Ke6 {[%clk 0:00:25]} 55. Be3 {[%clk 0:00:07]}  Bxe3+ {[%clk 0:00:23]} 56. Kxe3 {[%clk 0:00:08]}  Kd6 {[%clk 0:00:23]} 57. Kf4 {[%clk 0:00:05]}  Kc6 {[%clk 0:00:23]} 58. Ke3 {[%clk 0:00:06]}  Kxb6 {[%clk 0:00:24]} 59. Kf4 {[%clk 0:00:07]}  Kc5 {[%clk 0:00:24]} 60. Kxf5 {[%clk 0:00:08]}  e3 {[%clk 0:00:24]} 0-1


[Site "https://www.chess.com"]

[Event "Titled Tuesday Blitz November 22 Late 2022"]
[White "Kollars, Dmitrij"]
[Black "Toniutti, Ezio"]
[WhiteFideId "12909572"]
[BlackFideId "113034"]
[WhiteElo "2584"]
[BlackElo "2215"]
[Result "1-0"]
[Round "01"]
[TimeControl "180+1"]
[Date "2022.11.22"]
[WhiteClock "0:00:15"]
[BlackClock "0:00:09"]

1. Nf3 {[%clk 0:02:57]}  d5 {[%clk 0:03:00]} 2. c4 {[%clk 0:02:49]}  c6 {[%clk 0:03:00]} 3. b3 {[%clk 0:02:48]}  Bf5 {[%clk 0:02:58]} 4. Bb2 {[%clk 0:02:49]}  e6 {[%clk 0:02:59]} 5. g3 {[%clk 0:02:47]}  Nf6 {[%clk 0:02:59]} 6. Bg2 {[%clk 0:02:48]}  h6 {[%clk 0:02:57]} 7. O-O {[%clk 0:02:48]}  Be7 {[%clk 0:02:57]} 8. d3 {[%clk 0:02:48]}  O-O {[%clk 0:02:56]} 9. Nbd2 {[%clk 0:02:49]}  Nbd7 {[%clk 0:02:55]} 10. a3 {[%clk 0:02:43]}  Bh7 {[%clk 0:02:52]} 11. b4 {[%clk 0:02:37]}  a6 {[%clk 0:02:48]} 12. Qb3 {[%clk 0:02:36]}  Re8 {[%clk 0:02:46]} 13. Rac1 {[%clk 0:02:34]}  Bd6 {[%clk 0:02:44]} 14. Rfd1 {[%clk 0:02:31]}  Qe7 {[%clk 0:02:43]} 15. cxd5 {[%clk 0:02:20]}  exd5 {[%clk 0:02:33]} 16. Nd4 {[%clk 0:02:20]}  a5 {[%clk 0:02:24]} 17. Bc3 {[%clk 0:01:58]}  axb4 {[%clk 0:02:20]} 18. axb4 {[%clk 0:01:59]}  Bg6 {[%clk 0:02:08]} 19. Re1 {[%clk 0:01:50]}  Qd8 {[%clk 0:01:57]} 20. N2f3 {[%clk 0:01:42]}  Qb6 {[%clk 0:01:27]} 21. Qb2 {[%clk 0:01:35]}  Nf8 {[%clk 0:00:42]} 22. Nh4 {[%clk 0:01:32]}  Be5 {[%clk 0:00:40]} 23. f4 {[%clk 0:01:19]}  Bd6 {[%clk 0:00:31]} 24. h3 {[%clk 0:01:19]}  Nh5 {[%clk 0:00:20]} 25. Kh2 {[%clk 0:01:06]}  Qc7 {[%clk 0:00:19]} 26. Qd2 {[%clk 0:00:53]}  Ra3 {[%clk 0:00:18]} 27. Ndf5 {[%clk 0:00:49]}  Bxf5 {[%clk 0:00:17]} 28. Nxf5 {[%clk 0:00:49]}  Ne6 {[%clk 0:00:13]} 29. Bf3 {[%clk 0:00:42]}  g6 {[%clk 0:00:13]} 30. Nxd6 {[%clk 0:00:24]}  Qxd6 {[%clk 0:00:12]} 31. Bxh5 {[%clk 0:00:25]}  gxh5 {[%clk 0:00:12]} 32. f5 {[%clk 0:00:25]}  Ng5 {[%clk 0:00:12]} 33. h4 {[%clk 0:00:26]}  Ra2 {[%clk 0:00:09]} 34. Qxa2 {[%clk 0:00:21]}  Re3 {[%clk 0:00:09]} 35. Qa8+ {[%clk 0:00:15]} 1-0


[Site "https://www.chess.com"]

[Event "Titled Tuesday Blitz November 22 Late 2022"]
[White "Kopylov, Alexander A."]
[Black "Alexikov, Alexander"]
[WhiteFideId "4164857"]
[BlackFideId "14103958"]
[WhiteElo "2436"]
[BlackElo "2222"]
[Result "1-0"]
[Round "01"]
[TimeControl "180+1"]
[Date "2022.11.23"]
[WhiteClock "0:00:14"]
[BlackClock "0:00:04"]

1. e4 {[%clk 0:02:26]}  c5 {[%clk 0:02:57]} 2. Nf3 {[%clk 0:02:26]}  d6 {[%clk 0:02:57]} 3. Bb5+ {[%clk 0:02:25]}  Nd7 {[%clk 0:02:55]} 4. O-O {[%clk 0:02:21]}  a6 {[%clk 0:02:54]} 5. Bxd7+ {[%clk 0:02:20]}  Bxd7 {[%clk 0:02:53]} 6. h3 {[%clk 0:02:20]}  g6 {[%clk 0:02:47]} 7. d4 {[%clk 0:02:17]}  Bg7 {[%clk 0:02:35]} 8. dxc5 {[%clk 0:02:12]}  dxc5 {[%clk 0:02:35]} 9. Nc3 {[%clk 0:02:02]}  Bc6 {[%clk 0:02:28]} 10. Be3 {[%clk 0:02:01]}  b6 {[%clk 0:02:21]} 11. Qe2 {[%clk 0:01:54]}  Qc7 {[%clk 0:02:01]} 12. Nd5 {[%clk 0:01:34]}  Qb7 {[%clk 0:02:00]} 13. a4 {[%clk 0:01:27]}  e6 {[%clk 0:01:56]} 14. Nc3 {[%clk 0:01:21]}  Qe7 {[%clk 0:01:21]} 15. Qc4 {[%clk 0:01:05]}  Nf6 {[%clk 0:01:07]} 16. Qb3 {[%clk 0:00:46]}  Qa7 {[%clk 0:00:58]} 17. Ne5 {[%clk 0:00:38]}  Bb7 {[%clk 0:00:56]} 18. Nc4 {[%clk 0:00:32]}  Nd7 {[%clk 0:00:50]} 19. Rfd1 {[%clk 0:00:23]}  Bc6 {[%clk 0:00:45]} 20. Rd6 {[%clk 0:00:20]}  Rc8 {[%clk 0:00:43]} 21. Rad1 {[%clk 0:00:19]}  Ke7 {[%clk 0:00:28]} 22. Bg5+ {[%clk 0:00:18]}  f6 {[%clk 0:00:28]} 23. Nxb6 {[%clk 0:00:17]}  c4 {[%clk 0:00:04]} 24. Qxc4 {[%clk 0:00:14]} 1-0


[Site "https://www.chess.com"]

[Event "Titled Tuesday Blitz November 22 Late 2022"]
[White "Kulkarni, Rakesh"]
[Black "Hardaway, Brewington"]
[WhiteFideId "5037077"]
[BlackFideId "30941849"]
[WhiteElo "2246"]
[BlackElo "2159"]
[Result "1-0"]
[Round "01"]
[TimeControl "180+1"]
[Date "2022.11.23"]
[WhiteClock "0:01:23"]
[BlackClock "0:00:19"]

1. e4 {[%clk 0:03:00]}  c5 {[%clk 0:02:58]} 2. c3 {[%clk 0:02:58]}  Nf6 {[%clk 0:02:57]} 3. e5 {[%clk 0:02:57]}  Nd5 {[%clk 0:02:57]} 4. d4 {[%clk 0:02:57]}  cxd4 {[%clk 0:02:58]} 5. Nf3 {[%clk 0:02:58]}  Nc6 {[%clk 0:02:58]} 6. cxd4 {[%clk 0:02:58]}  d6 {[%clk 0:02:57]} 7. Bc4 {[%clk 0:02:59]}  e6 {[%clk 0:02:45]} 8. O-O {[%clk 0:02:58]}  Be7 {[%clk 0:02:40]} 9. Qe2 {[%clk 0:02:58]}  O-O {[%clk 0:02:40]} 10. Nc3 {[%clk 0:02:58]}  Nxc3 {[%clk 0:02:39]} 11. bxc3 {[%clk 0:02:59]}  dxe5 {[%clk 0:02:40]} 12. dxe5 {[%clk 0:02:59]}  Qa5 {[%clk 0:02:34]} 13. Bd2 {[%clk 0:02:59]}  b6 {[%clk 0:02:32]} 14. Bb5 {[%clk 0:02:55]}  Bb7 {[%clk 0:02:27]} 15. a3 {[%clk 0:02:50]}  a6 {[%clk 0:01:37]} 16. c4 {[%clk 0:02:47]}  axb5 {[%clk 0:01:38]} 17. Bxa5 {[%clk 0:02:46]}  Nxa5 {[%clk 0:01:38]} 18. cxb5 {[%clk 0:02:45]}  Nb3 {[%clk 0:01:39]} 19. Rad1 {[%clk 0:02:42]}  Bd5 {[%clk 0:01:34]} 20. Rxd5 {[%clk 0:02:30]}  exd5 {[%clk 0:01:34]} 21. e6 {[%clk 0:02:31]}  f6 {[%clk 0:01:33]} 22. Qd3 {[%clk 0:02:24]}  Nc5 {[%clk 0:01:22]} 23. Qxd5 {[%clk 0:02:23]}  Rxa3 {[%clk 0:01:13]} 24. h4 {[%clk 0:02:22]}  Raa8 {[%clk 0:01:08]} 25. Qc6 {[%clk 0:02:21]}  Rab8 {[%clk 0:01:05]} 26. Rd1 {[%clk 0:02:21]}  Rfc8 {[%clk 0:01:05]} 27. Nd4 {[%clk 0:01:52]}  Rxc6 {[%clk 0:00:49]} 28. Nxc6 {[%clk 0:01:53]}  Rb7 {[%clk 0:00:34]} 29. Nxe7+ {[%clk 0:01:52]}  Kf8 {[%clk 0:00:34]} 30. Nc6 {[%clk 0:01:32]}  Nxe6 {[%clk 0:00:34]} 31. Rd6 {[%clk 0:01:31]}  Nc5 {[%clk 0:00:23]} 32. h5 {[%clk 0:01:31]}  Kf7 {[%clk 0:00:22]} 33. Nd8+ {[%clk 0:01:26]}  Ke7 {[%clk 0:00:22]} 34. Nxb7 {[%clk 0:01:27]}  Nxb7 {[%clk 0:00:22]} 35. Rxb6 {[%clk 0:01:27]}  Nd6 {[%clk 0:00:23]} 36. h6 {[%clk 0:01:25]}  gxh6 {[%clk 0:00:22]} 37. Rb8 {[%clk 0:01:25]}  Kd7 {[%clk 0:00:21]} 38. Kh2 {[%clk 0:01:25]}  Kc7 {[%clk 0:00:20]} 39. Rh8 {[%clk 0:01:24]}  Nxb5 {[%clk 0:00:20]} 40. Rxh7+ {[%clk 0:01:24]}  Kd6 {[%clk 0:00:20]} 41. Rxh6 {[%clk 0:01:25]}  Ke6 {[%clk 0:00:21]} 42. Rh8 {[%clk 0:01:25]}  Nd4 {[%clk 0:00:21]} 43. Ra8 {[%clk 0:01:25]}  Kf5 {[%clk 0:00:20]} 44. Kg3 {[%clk 0:01:25]}  Kg6 {[%clk 0:00:20]} 45. f3 {[%clk 0:01:24]}  Nf5+ {[%clk 0:00:20]} 46. Kf2 {[%clk 0:01:25]}  Nd6 {[%clk 0:00:20]} 47. g4 {[%clk 0:01:26]}  f5 {[%clk 0:00:20]} 48. Ra6 {[%clk 0:01:26]}  Kg5 {[%clk 0:00:20]} 49. Rxd6 {[%clk 0:01:25]}  fxg4 {[%clk 0:00:19]} 50. fxg4 {[%clk 0:01:25]}  Kf4 {[%clk 0:00:18]} 51. Rd4+ {[%clk 0:01:23]}  Kg5 {[%clk 0:00:19]} 52. Kf3 {[%clk 0:01:23]} 1-0


[Site "https://www.chess.com"]

[Event "Titled Tuesday Blitz November 22 Late 2022"]
[White "Liu, Kelsey"]
[Black "Gritsenko, Nikolai"]
[WhiteFideId "30944481"]
[BlackFideId "14112493"]
[WhiteElo "2323"]
[BlackElo "2389"]
[Result "1/2-1/2"]
[Round "01"]
[TimeControl "180+1"]
[Date "2022.11.23"]
[WhiteClock "0:00:43"]
[BlackClock "0:00:27"]

1. e4 {[%clk 0:02:56]}  d6 {[%clk 0:02:59]} 2. d4 {[%clk 0:02:53]}  Nf6 {[%clk 0:03:00]} 3. Nc3 {[%clk 0:02:49]}  g6 {[%clk 0:03:00]} 4. Bf4 {[%clk 0:02:45]}  Bg7 {[%clk 0:02:57]} 5. Qd2 {[%clk 0:02:45]}  Nbd7 {[%clk 0:02:55]} 6. Nf3 {[%clk 0:02:43]}  c5 {[%clk 0:02:52]} 7. O-O-O {[%clk 0:02:38]}  cxd4 {[%clk 0:02:51]} 8. Nxd4 {[%clk 0:02:38]}  O-O {[%clk 0:02:10]} 9. Bh6 {[%clk 0:02:36]}  Bh8 {[%clk 0:01:54]} 10. Bxf8 {[%clk 0:02:31]}  Qxf8 {[%clk 0:01:53]} 11. h4 {[%clk 0:02:23]}  h5 {[%clk 0:01:49]} 12. Be2 {[%clk 0:02:21]}  Nc5 {[%clk 0:01:46]} 13. f3 {[%clk 0:02:10]}  Bg7 {[%clk 0:01:39]} 14. Kb1 {[%clk 0:01:57]}  a6 {[%clk 0:01:14]} 15. Rdg1 {[%clk 0:01:56]}  b5 {[%clk 0:01:12]} 16. a3 {[%clk 0:01:14]}  Bh6 {[%clk 0:01:10]} 17. Qd1 {[%clk 0:01:11]}  Be3 {[%clk 0:01:04]} 18. Re1 {[%clk 0:01:07]}  Bh6 {[%clk 0:00:37]} 19. Rhg1 {[%clk 0:00:43]}  Be3 {[%clk 0:00:29]} 20. Rh1 {[%clk 0:00:42]}  Bh6 {[%clk 0:00:29]} 21. Rhg1 {[%clk 0:00:42]}  Be3 {[%clk 0:00:27]} 22. Rh1 {[%clk 0:00:43]} 1/2-1/2


[Site "https://www.chess.com"]